[Event "*** Titled Tuesday 3|2 Blitz (Late)"]
[Site "Chess.com"]
[Date "2017.01.03"]
[Round "3"]
[White "eltenedor"]
[Black "MattyDPerrine"]
[Result "0-1"]
[WhiteElo "2052"]
[BlackElo "2256"]
[TimeControl "180+2"]
[EndTime "17:32:47 PST"]
[Termination "MattyDPerrine won by resignation"]

1. c4 {[%clk 0:02:52.9]} 1... Nf6 {[%clk 0:02:59.2]} 2. g3 {[%clk 0:02:50.6]}
2... c5 {[%clk 0:02:56.7]} 3. Bg2 {[%clk 0:02:43.6]} 3... g6 {[%clk 0:02:57.9]}
4. Nc3 {[%clk 0:02:43.7]} 4... Bg7 {[%clk 0:02:59.2]} 5. e3 {[%clk 0:02:42.1]}
5... Nc6 {[%clk 0:02:54]} 6. Nge2 {[%clk 0:02:43.2]} 6... O-O {[%clk 0:02:50.7]}
7. O-O {[%clk 0:02:43]} 7... d6 {[%clk 0:02:49.4]} 8. d4 {[%clk 0:02:41.3]} 8...
Bd7 {[%clk 0:02:48.6]} 9. b3 {[%clk 0:02:29]} 9... Rc8 {[%clk 0:02:48.8]} 10.
Bb2 {[%clk 0:02:29.1]} 10... Bf5 {[%clk 0:02:44.5]} 11. e4 {[%clk 0:02:01.7]}
11... Bg4 {[%clk 0:02:36.1]} 12. h3 {[%clk 0:01:58.2]} 12... cxd4 {[%clk
0:01:53.7]} 13. hxg4 {[%clk 0:01:49.3]} 13... dxc3 {[%clk 0:01:55]} 14. Nxc3
{[%clk 0:01:46.8]} 14... Nd7 {[%clk 0:01:54.1]} 15. Na4 {[%clk 0:01:26.4]} 15...
Bxb2 {[%clk 0:01:40.3]} 16. Nxb2 {[%clk 0:01:27.7]} 16... Nc5 {[%clk 0:01:36]}
17. f4 {[%clk 0:01:12.2]} 17... e5 {[%clk 0:01:21.5]} 18. g5 {[%clk 0:01:05.2]}
18... Rc7 {[%clk 0:01:04.2]} 19. f5 {[%clk 0:01:01.3]} 19... Qxg5 {[%clk
0:00:46.5]} 20. Qxd6 {[%clk 0:00:59]} 20... Qe3+ {[%clk 0:00:47.6]} 21. Rf2
{[%clk 0:00:53.5]} 21... Rd7 {[%clk 0:00:48.2]} 22. Qf6 {[%clk 0:00:50.1]} 22...
Rd2 {[%clk 0:00:39.1]} 23. Rf1 {[%clk 0:00:35.5]} 23... Rxb2 {[%clk 0:00:33.4]}
24. fxg6 {[%clk 0:00:35.9]} 24... hxg6 {[%clk 0:00:33.7]} 25. Kh2 {[%clk
0:00:31.3]} 25... Rxf2 {[%clk 0:00:32.2]} 26. Rxf2 {[%clk 0:00:31.7]} 26... Nd3
{[%clk 0:00:27.2]} 27. Rf3 {[%clk 0:00:24]} 27... Qh6+ {[%clk 0:00:28.3]} 28.
Kg1 {[%clk 0:00:23.2]} 28... Ne1 {[%clk 0:00:27.6]} 29. Rf2 {[%clk 0:00:22]}
29... Nxg2 {[%clk 0:00:26.3]} 30. Rxg2 {[%clk 0:00:22.7]} 30... Rd8 {[%clk
0:00:19.2]} 31. Qf1 {[%clk 0:00:19]} 31... Qe3+ {[%clk 0:00:18.9]} 32. Kh2
{[%clk 0:00:19.1]} 32... Kg7 {[%clk 0:00:19.9]} 0-1

[Event "*** Titled Tuesday 3|2 Blitz (Late)"]
[Site "Chess.com"]
[Date "2017.01.03"]
[Round "3"]
[White "Andrejkin"]
[Black "amurdercastle"]
[Result "0-1"]
[WhiteElo "2200"]
[BlackElo "2346"]
[TimeControl "180+2"]
[EndTime "17:32:59 PST"]
[Termination "amurdercastle won by checkmate"]

1. d4 {[%clk 0:03:00.7]} 1... d5 {[%clk 0:03:01.1]} 2. Nf3 {[%clk 0:03:01.2]}
2... Nf6 {[%clk 0:03:01]} 3. c4 {[%clk 0:03:01.8]} 3... c6 {[%clk 0:03:02.3]} 4.
Nc3 {[%clk 0:03:02.2]} 4... e6 {[%clk 0:03:03.6]} 5. Bg5 {[%clk 0:03:02.5]} 5...
dxc4 {[%clk 0:03:04.4]} 6. a4 {[%clk 0:03:01]} 6... Bb4 {[%clk 0:03:04.3]} 7.
Bxf6 {[%clk 0:02:56.5]} 7... Qxf6 {[%clk 0:02:58.8]} 8. e4 {[%clk 0:02:57.9]}
8... b5 {[%clk 0:02:59.7]} 9. Be2 {[%clk 0:02:56.9]} 9... Bb7 {[%clk 0:03:00.3]}
10. O-O {[%clk 0:02:57.4]} 10... a6 {[%clk 0:03:01.5]} 11. e5 {[%clk 0:02:57.8]}
11... Qd8 {[%clk 0:02:58.5]} 12. Rc1 {[%clk 0:02:56.8]} 12... Nd7 {[%clk
0:02:59.2]} 13. b3 {[%clk 0:02:55.6]} 13... cxb3 {[%clk 0:02:49.4]} 14. Qxb3
{[%clk 0:02:53.9]} 14... Be7 {[%clk 0:02:50.8]} 15. Ne4 {[%clk 0:02:40.5]} 15...
b4 {[%clk 0:02:48.6]} 16. Rfd1 {[%clk 0:02:34.1]} 16... a5 {[%clk 0:02:47.4]}
17. h4 {[%clk 0:02:29.1]} 17... O-O {[%clk 0:02:47.5]} 18. Bd3 {[%clk
0:02:24.4]} 18... h6 {[%clk 0:02:46.7]} 19. Bb1 {[%clk 0:02:24.2]} 19... Re8
{[%clk 0:02:44.1]} 20. Qc2 {[%clk 0:02:13.2]} 20... Nf8 {[%clk 0:02:41.2]} 21.
Nc5 {[%clk 0:02:08.5]} 21... Bc8 {[%clk 0:02:08.6]} 22. h5 {[%clk 0:02:06.4]}
22... Qb6 {[%clk 0:02:08.8]} 23. Nd2 {[%clk 0:01:56.1]} 23... Rd8 {[%clk
0:01:59.6]} 24. Nc4 {[%clk 0:01:54.8]} 24... Qc7 {[%clk 0:02:00.4]} 25. Ne3
{[%clk 0:01:48]} 25... Rb8 {[%clk 0:01:18.2]} 26. f4 {[%clk 0:01:47.5]} 26...
Qa7 {[%clk 0:01:18.3]} 27. g4 {[%clk 0:01:32.5]} 27... Qb6 {[%clk 0:01:04.6]}
28. g5 {[%clk 0:01:22.5]} 28... hxg5 {[%clk 0:01:01]} 29. f5 {[%clk 0:01:17.4]}
29... exf5 {[%clk 0:00:58.3]} 30. Nxf5 {[%clk 0:01:18.3]} 30... Bxf5 {[%clk
0:00:59.2]} 31. Qxf5 {[%clk 0:01:18.9]} 31... Rxd4 {[%clk 0:00:57.2]} 32. Rf1
{[%clk 0:00:45]} 32... Rf4 {[%clk 0:00:39]} 33. Rxf4 {[%clk 0:00:44]} 33...
Bxc5+ {[%clk 0:00:39.9]} 34. Rxc5 {[%clk 0:00:25.9]} 34... Qxc5+ {[%clk
0:00:38.4]} 35. Rf2 {[%clk 0:00:26.7]} 35... Qd5 {[%clk 0:00:33.2]} 36. Ba2
{[%clk 0:00:25]} 36... b3 {[%clk 0:00:33.7]} 37. Bb1 {[%clk 0:00:24.2]} 37...
Rb4 {[%clk 0:00:32.3]} 38. h6 {[%clk 0:00:20.5]} 38... Rh4 {[%clk 0:00:31.9]}
39. hxg7 {[%clk 0:00:20.9]} 39... Rh1# {[%clk 0:00:31.8]} 0-1

[Event "*** Titled Tuesday 3|2 Blitz (Late)"]
[Site "Chess.com"]
[Date "2017.01.03"]
[Round "3"]
[White "Kawhi_Leonard2"]
[Black "BCNUM8"]
[Result "1-0"]
[WhiteElo "2212"]
[BlackElo "2132"]
[TimeControl "180+2"]
[EndTime "17:33:19 PST"]
[Termination "Kawhi_Leonard2 won by resignation"]

1. e4 {[%clk 0:03:02]} 1... Nc6 {[%clk 0:03:01.1]} 2. Nf3 {[%clk 0:03:02.3]}
2... d6 {[%clk 0:03:02.3]} 3. d4 {[%clk 0:03:02.4]} 3... Nf6 {[%clk 0:03:04.2]}
4. Nc3 {[%clk 0:03:02.4]} 4... Bg4 {[%clk 0:03:05.6]} 5. Be2 {[%clk 0:03:02.5]}
5... e6 {[%clk 0:03:06.7]} 6. Be3 {[%clk 0:03:03.4]} 6... Be7 {[%clk 0:03:08]}
7. Qd2 {[%clk 0:03:00.9]} 7... a6 {[%clk 0:03:09]} 8. h3 {[%clk 0:03:01.3]} 8...
Bxf3 {[%clk 0:03:09.6]} 9. Bxf3 {[%clk 0:03:02]} 9... d5 {[%clk 0:02:57.1]} 10.
e5 {[%clk 0:02:58.5]} 10... Nd7 {[%clk 0:02:58.2]} 11. g3 {[%clk 0:02:48.8]}
11... Nb6 {[%clk 0:02:59]} 12. Be2 {[%clk 0:02:48.9]} 12... Na5 {[%clk
0:02:54.9]} 13. b3 {[%clk 0:02:47.9]} 13... Nc6 {[%clk 0:02:42.6]} 14. f4 {[%clk
0:02:47]} 14... O-O {[%clk 0:02:33.2]} 15. O-O {[%clk 0:02:46.6]} 15... f6
{[%clk 0:02:29.6]} 16. exf6 {[%clk 0:02:46.2]} 16... Bxf6 {[%clk 0:02:31.1]} 17.
Bg4 {[%clk 0:02:36.2]} 17... Qd6 {[%clk 0:02:32.1]} 18. Ne2 {[%clk 0:02:31.9]}
18... Ne7 {[%clk 0:02:26.2]} 19. Kg2 {[%clk 0:02:21.1]} 19... Nf5 {[%clk
0:02:27.4]} 20. Ng1 {[%clk 0:02:18.3]} 20... Rae8 {[%clk 0:02:25.4]} 21. Nf3
{[%clk 0:02:18.3]} 21... Nh6 {[%clk 0:01:57]} 22. Ne5 {[%clk 0:02:16.2]} 22...
Nxg4 {[%clk 0:01:54.9]} 23. hxg4 {[%clk 0:02:16.5]} 23... Bxe5 {[%clk
0:01:52.9]} 24. dxe5 {[%clk 0:02:14]} 24... Qe7 {[%clk 0:01:47.2]} 25. Bxb6
{[%clk 0:02:10.8]} 25... cxb6 {[%clk 0:01:47.9]} 26. c4 {[%clk 0:02:06.8]} 26...
Rd8 {[%clk 0:01:47.7]} 27. cxd5 {[%clk 0:01:57.8]} 27... Rxd5 {[%clk 0:01:48.2]}
28. Qe2 {[%clk 0:01:59.1]} 28... Rfd8 {[%clk 0:01:48.1]} 29. Rad1 {[%clk
0:02:00.6]} 29... Qc5 {[%clk 0:01:48.7]} 30. Rxd5 {[%clk 0:01:55.4]} 30... Rxd5
{[%clk 0:01:47.7]} 31. Rf2 {[%clk 0:01:52]} 31... Qc3 {[%clk 0:01:43.4]} 32. Qc4
{[%clk 0:01:39.4]} 32... Qxc4 {[%clk 0:01:23.3]} 33. bxc4 {[%clk 0:01:39.9]}
33... Rc5 {[%clk 0:01:25.2]} 34. Rb2 {[%clk 0:01:39.2]} 34... Rc6 {[%clk
0:01:17.2]} 35. Kf3 {[%clk 0:01:39.2]} 35... Kf7 {[%clk 0:01:18.8]} 36. Ke3
{[%clk 0:01:39.9]} 36... Ke7 {[%clk 0:01:19.9]} 37. Kd4 {[%clk 0:01:40.9]} 37...
Kd7 {[%clk 0:01:20.4]} 38. g5 {[%clk 0:01:35.4]} 38... Ke7 {[%clk 0:01:02]} 39.
Rh2 {[%clk 0:01:34.7]} 39... Kf7 {[%clk 0:01:03.5]} 40. Rxh7 {[%clk 0:01:34.8]}
40... Kg6 {[%clk 0:01:05.4]} 41. Rh8 {[%clk 0:01:30.1]} 41... Rc7 {[%clk
0:01:06.7]} 42. g4 {[%clk 0:01:18.2]} 42... Rd7+ {[%clk 0:01:06.8]} 43. Ke4
{[%clk 0:01:19.2]} 43... Rc7 {[%clk 0:01:08.4]} 44. Kd4 {[%clk 0:01:14.7]} 44...
Rd7+ {[%clk 0:01:09]} 45. Ke3 {[%clk 0:01:06.6]} 45... Rc7 {[%clk 0:01:09.9]}
46. Re8 {[%clk 0:01:05.6]} 46... Kf7 {[%clk 0:01:10.2]} 47. Rb8 {[%clk
0:01:05.6]} 47... Ke7 {[%clk 0:00:59.8]} 48. f5 {[%clk 0:01:05.8]} 48... Kf7
{[%clk 0:00:50.8]} 49. g6+ {[%clk 0:01:01.3]} 49... Ke7 {[%clk 0:00:52.1]} 50.
Rg8 {[%clk 0:01:01.7]} 50... Rxc4 {[%clk 0:00:50.6]} 51. Rxg7+ {[%clk
0:01:02.6]} 51... Kf8 {[%clk 0:00:51.8]} 52. Rf7+ {[%clk 0:01:02.5]} 52... Kg8
{[%clk 0:00:50.7]} 53. fxe6 {[%clk 0:00:53.4]} 53... Rxg4 {[%clk 0:00:52.6]} 54.
e7 {[%clk 0:00:54.3]} 1-0

[Event "*** Titled Tuesday 3|2 Blitz (Late)"]
[Site "Chess.com"]
[Date "2017.01.03"]
[Round "3"]
[White "Fh2411"]
[Black "Dr-Bassem"]
[Result "0-1"]
[WhiteElo "2387"]
[BlackElo "2659"]
[TimeControl "180+2"]
[EndTime "17:33:46 PST"]
[Termination "Dr-Bassem won by resignation"]

1. d4 {[%clk 0:02:57.8]} 1... f5 {[%clk 0:02:59.3]} 2. Nf3 {[%clk 0:02:55.4]}
2... e6 {[%clk 0:03:00.1]} 3. g3 {[%clk 0:02:55.9]} 3... Nf6 {[%clk 0:03:01.1]}
4. Bg2 {[%clk 0:02:57.8]} 4... Be7 {[%clk 0:03:02.7]} 5. O-O {[%clk 0:02:59.2]}
5... O-O {[%clk 0:03:04.4]} 6. c4 {[%clk 0:02:57]} 6... d6 {[%clk 0:03:06.3]} 7.
b3 {[%clk 0:02:53.3]} 7... Qe8 {[%clk 0:03:07.4]} 8. Bb2 {[%clk 0:02:51.6]} 8...
Nbd7 {[%clk 0:03:02.4]} 9. Nc3 {[%clk 0:02:49.4]} 9... Ne4 {[%clk 0:02:59.3]}
10. Nd2 {[%clk 0:02:33.6]} 10... Nxd2 {[%clk 0:02:47.1]} 11. Qxd2 {[%clk
0:02:35.5]} 11... e5 {[%clk 0:02:41.5]} 12. Nd5 {[%clk 0:02:14.6]} 12... Bd8
{[%clk 0:02:42.1]} 13. dxe5 {[%clk 0:02:07.2]} 13... dxe5 {[%clk 0:02:42.7]} 14.
Rad1 {[%clk 0:01:57.1]} 14... c6 {[%clk 0:02:43.6]} 15. Ne3 {[%clk 0:01:51.7]}
15... f4 {[%clk 0:02:34.3]} 16. Nc2 {[%clk 0:01:46.7]} 16... Bb6 {[%clk
0:02:34.3]} 17. b4 {[%clk 0:01:38.7]} 17... fxg3 {[%clk 0:02:28]} 18. hxg3
{[%clk 0:01:40.6]} 18... Nf6 {[%clk 0:02:21.1]} 19. c5 {[%clk 0:01:38.7]} 19...
Bc7 {[%clk 0:02:21.9]} 20. Ne3 {[%clk 0:01:39.3]} 20... Be6 {[%clk 0:02:19]} 21.
a3 {[%clk 0:01:40.1]} 21... Qh5 {[%clk 0:02:18.6]} 22. Qc2 {[%clk 0:01:29.2]}
22... Rae8 {[%clk 0:01:50.3]} 23. Rd2 {[%clk 0:01:21]} 23... Kh8 {[%clk
0:01:29.9]} 24. Rfd1 {[%clk 0:01:11.8]} 24... Re7 {[%clk 0:01:22.5]} 25. Rd6
{[%clk 0:00:41.2]} 25... Bxd6 {[%clk 0:01:18.7]} 26. cxd6 {[%clk 0:00:43.1]}
26... Rd7 {[%clk 0:01:19.4]} 27. Qc5 {[%clk 0:00:44.2]} 27... Qxe2 {[%clk
0:01:08]} 28. Bxe5 {[%clk 0:00:40.3]} 28... Ng4 {[%clk 0:01:01.5]} 29. Rf1
{[%clk 0:00:24.2]} 29... Rxf2 {[%clk 0:00:50]} 30. Bf4 {[%clk 0:00:13.4]} 30...
Rxg2+ {[%clk 0:00:24.8]} 31. Nxg2 {[%clk 0:00:12.2]} 31... Bd5 {[%clk 0:00:26]}
32. Rf2 {[%clk 0:00:06.2]} 32... Qxf2+ {[%clk 0:00:25.7]} 33. Qxf2 {[%clk
0:00:08.1]} 33... Nxf2 {[%clk 0:00:26.8]} 34. Kxf2 {[%clk 0:00:10]} 34... Bxg2
{[%clk 0:00:27.3]} 35. Kxg2 {[%clk 0:00:11.9]} 35... Kg8 {[%clk 0:00:28.7]} 36.
Kf3 {[%clk 0:00:13]} 36... Kf7 {[%clk 0:00:30]} 37. Ke4 {[%clk 0:00:13.7]} 37...
Ke6 {[%clk 0:00:31.5]} 38. Kd4 {[%clk 0:00:12]} 38... b6 {[%clk 0:00:31.8]} 39.
a4 {[%clk 0:00:12.5]} 39... Rf7 {[%clk 0:00:30.7]} 40. a5 {[%clk 0:00:10.3]}
40... h6 {[%clk 0:00:31]} 0-1

[Event "*** Titled Tuesday 3|2 Blitz (Late)"]
[Site "Chess.com"]
[Date "2017.01.03"]
[Round "3"]
[White "Kanthecarowin"]
[Black "Izoria123"]
[Result "0-1"]
[WhiteElo "2251"]
[BlackElo "2425"]
[TimeControl "180+2"]
[EndTime "17:33:54 PST"]
[Termination "Izoria123 won by resignation"]

1. d4 {[%clk 0:03:01.9]} 1... Nf6 {[%clk 0:03:00.6]} 2. c4 {[%clk 0:03:01.5]}
2... g6 {[%clk 0:03:01.5]} 3. Nc3 {[%clk 0:03:01.8]} 3... Bg7 {[%clk 0:03:02.9]}
4. e4 {[%clk 0:03:02.6]} 4... d6 {[%clk 0:03:04]} 5. Be2 {[%clk 0:03:03.9]} 5...
O-O {[%clk 0:03:05.6]} 6. Be3 {[%clk 0:03:04.5]} 6... c6 {[%clk 0:02:54.2]} 7.
Nf3 {[%clk 0:03:04.9]} 7... e5 {[%clk 0:02:54.5]} 8. d5 {[%clk 0:03:05.9]} 8...
Ng4 {[%clk 0:02:55.1]} 9. Bg5 {[%clk 0:03:06.7]} 9... f6 {[%clk 0:02:56.2]} 10.
Bh4 {[%clk 0:03:07.9]} 10... c5 {[%clk 0:02:56]} 11. Nd2 {[%clk 0:03:05.8]}
11... h5 {[%clk 0:02:56.5]} 12. a3 {[%clk 0:03:03]} 12... Na6 {[%clk 0:02:56]}
13. h3 {[%clk 0:03:02.7]} 13... Nh6 {[%clk 0:02:53.4]} 14. f3 {[%clk 0:03:03.9]}
14... Nf7 {[%clk 0:02:53.8]} 15. Rb1 {[%clk 0:03:03.9]} 15... Bh6 {[%clk
0:02:53.4]} 16. Bf2 {[%clk 0:03:02.5]} 16... f5 {[%clk 0:02:53.1]} 17. b4 {[%clk
0:03:02.5]} 17... Bf4 {[%clk 0:02:50.5]} 18. g4 {[%clk 0:02:35.6]} 18... fxg4
{[%clk 0:01:58.5]} 19. fxg4 {[%clk 0:02:33.5]} 19... h4 {[%clk 0:01:58.1]} 20.
Nf3 {[%clk 0:02:20.7]} 20... Bg3 {[%clk 0:01:42]} 21. O-O {[%clk 0:02:17.6]}
21... Bxf2+ {[%clk 0:01:29]} 22. Rxf2 {[%clk 0:02:19.5]} 22... Ng5 {[%clk
0:01:29.7]} 23. Kg2 {[%clk 0:02:11.8]} 23... Bd7 {[%clk 0:01:24.5]} 24. Qd2
{[%clk 0:01:50.3]} 24... Rf4 {[%clk 0:01:24.5]} 25. Nxe5 {[%clk 0:01:25.8]}
25... Rxf2+ {[%clk 0:01:22.6]} 26. Kxf2 {[%clk 0:01:27.2]} 26... dxe5 {[%clk
0:01:22.7]} 27. d6 {[%clk 0:01:26.6]} 27... Qf6+ {[%clk 0:01:15.9]} 28. Kg2
{[%clk 0:01:27.1]} 28... Ne6 {[%clk 0:00:38.4]} 29. Nd5 {[%clk 0:01:17.8]} 29...
Nf4+ {[%clk 0:00:39.3]} 30. Nxf4 {[%clk 0:01:19]} 30... Qxf4 {[%clk 0:00:39.9]}
31. Qd5+ {[%clk 0:01:19.5]} 31... Kh8 {[%clk 0:00:39.7]} 32. Qxb7 {[%clk
0:01:19.7]} 32... Qg3+ {[%clk 0:00:37.7]} 33. Kh1 {[%clk 0:01:20.5]} 33... Qxh3+
{[%clk 0:00:37.6]} 34. Kg1 {[%clk 0:01:21.7]} 34... Qg3+ {[%clk 0:00:34.9]} 35.
Kh1 {[%clk 0:01:20.8]} 35... Rf8 {[%clk 0:00:19.7]} 36. Qxd7 {[%clk 0:00:52.8]}
36... Qh3+ {[%clk 0:00:20.6]} 37. Kg1 {[%clk 0:00:54.2]} 37... Qg3+ {[%clk
0:00:22.5]} 38. Kh1 {[%clk 0:00:55.3]} 38... Qh3+ {[%clk 0:00:23.2]} 39. Kg1
{[%clk 0:00:56.5]} 39... Qe3+ {[%clk 0:00:25.1]} 40. Kh1 {[%clk 0:00:55.2]}
40... Qxe2 {[%clk 0:00:26.4]} 41. Qe7 {[%clk 0:00:43.4]} 41... Qxe4+ {[%clk
0:00:26.7]} 42. Kh2 {[%clk 0:00:44.8]} 42... Rf2+ {[%clk 0:00:26]} 43. Kh3
{[%clk 0:00:46.3]} 43... Qxb1 {[%clk 0:00:20.4]} 44. Qxe5+ {[%clk 0:00:31.4]}
44... Kg8 {[%clk 0:00:21]} 45. Qe6+ {[%clk 0:00:19.3]} 45... Rf7 {[%clk
0:00:21.4]} 46. Qe8+ {[%clk 0:00:16.1]} 46... Kg7 {[%clk 0:00:22.7]} 47. Qe5+
{[%clk 0:00:17]} 47... Kh7 {[%clk 0:00:24.1]} 48. d7 {[%clk 0:00:15.3]} 48...
Qh1+ {[%clk 0:00:24]} 0-1

[Event "*** Titled Tuesday 3|2 Blitz (Late)"]
[Site "Chess.com"]
[Date "2017.01.03"]
[Round "3"]
[White "JustKid"]
[Black "AdrianaNikolova"]
[Result "0-1"]
[WhiteElo "2226"]
[BlackElo "2251"]
[TimeControl "180+2"]
[EndTime "17:34:08 PST"]
[Termination "AdrianaNikolova won by resignation"]

1. d4 {[%clk 0:03:02]} 1... d5 {[%clk 0:02:57.8]} 2. Bf4 {[%clk 0:03:02.1]} 2...
c6 {[%clk 0:02:59.7]} 3. e3 {[%clk 0:03:03.2]} 3... Nf6 {[%clk 0:03:01]} 4. c4
{[%clk 0:03:04.2]} 4... Bg4 {[%clk 0:03:02]} 5. Qb3 {[%clk 0:03:03.9]} 5... Qb6
{[%clk 0:03:02.2]} 6. Nc3 {[%clk 0:02:58.9]} 6... e6 {[%clk 0:03:02.3]} 7. Nf3
{[%clk 0:02:49.6]} 7... Bxf3 {[%clk 0:02:59.9]} 8. gxf3 {[%clk 0:02:50.3]} 8...
Nbd7 {[%clk 0:03:01.4]} 9. c5 {[%clk 0:02:50.9]} 9... Qxb3 {[%clk 0:02:59.5]}
10. axb3 {[%clk 0:02:52.8]} 10... a6 {[%clk 0:02:59.5]} 11. b4 {[%clk
0:02:54.2]} 11... Rc8 {[%clk 0:03:00.5]} 12. Rg1 {[%clk 0:02:50.4]} 12... g6
{[%clk 0:03:00.1]} 13. Kd2 {[%clk 0:02:51.4]} 13... Bg7 {[%clk 0:03:00.6]} 14.
Bd6 {[%clk 0:02:49.9]} 14... Bf8 {[%clk 0:02:54.4]} 15. Bf4 {[%clk 0:02:50.6]}
15... Nh5 {[%clk 0:02:49]} 16. Bg5 {[%clk 0:02:49.4]} 16... Bg7 {[%clk
0:02:48.5]} 17. f4 {[%clk 0:02:20.9]} 17... O-O {[%clk 0:02:46]} 18. Ne2 {[%clk
0:02:16.4]} 18... f6 {[%clk 0:02:41.9]} 19. Bh4 {[%clk 0:02:17]} 19... e5 {[%clk
0:02:43.4]} 20. Bh3 {[%clk 0:02:12.3]} 20... Rc7 {[%clk 0:02:35.5]} 21. Be6+
{[%clk 0:02:06.3]} 21... Kh8 {[%clk 0:02:34.6]} 22. fxe5 {[%clk 0:01:57.8]}
22... fxe5 {[%clk 0:02:33.8]} 23. Be7 {[%clk 0:01:43.3]} 23... Re8 {[%clk
0:02:14.7]} 24. Bd6 {[%clk 0:01:42.3]} 24... Rxe6 {[%clk 0:02:13.3]} 25. Bxc7
{[%clk 0:01:42.9]} 25... Nhf6 {[%clk 0:01:58]} 26. f3 {[%clk 0:01:23.8]} 26...
Ne8 {[%clk 0:01:42]} 27. Bd8 {[%clk 0:01:14.4]} 27... Kg8 {[%clk 0:01:30.6]} 28.
f4 {[%clk 0:01:11.5]} 28... exd4 {[%clk 0:01:27]} 29. Nxd4 {[%clk 0:01:11.5]}
29... Bxd4 {[%clk 0:01:27.9]} 30. exd4 {[%clk 0:01:13.1]} 30... Re4 {[%clk
0:01:28.4]} 31. f5 {[%clk 0:01:13.2]} 31... Rxd4+ {[%clk 0:01:27.8]} 32. Kc3
{[%clk 0:01:14.1]} 32... Rc4+ {[%clk 0:01:27.3]} 33. Kb3 {[%clk 0:01:15.7]}
33... Nf8 {[%clk 0:01:04.9]} 34. Rae1 {[%clk 0:01:09.8]} 34... Ng7 {[%clk
0:01:05.7]} 35. f6 {[%clk 0:01:02.2]} 35... Nf5 {[%clk 0:01:02]} 36. Be7 {[%clk
0:00:47.1]} 36... Nd4+ {[%clk 0:00:57.9]} 37. Ka2 {[%clk 0:00:43.2]} 37... Nf3
{[%clk 0:00:45]} 38. f7+ {[%clk 0:00:38.2]} 38... Kg7 {[%clk 0:00:36.2]} 39.
Bxf8+ {[%clk 0:00:16.1]} 39... Kxf8 {[%clk 0:00:38.1]} 40. Rgf1 {[%clk
0:00:14.3]} 40... Nxe1 {[%clk 0:00:37.9]} 41. Rxe1 {[%clk 0:00:16.2]} 41... Rxb4
{[%clk 0:00:30.5]} 42. Ka3 {[%clk 0:00:14.4]} 42... Rc4 {[%clk 0:00:28.6]} 43.
b4 {[%clk 0:00:15.1]} 43... Kxf7 {[%clk 0:00:26.6]} 44. Ka4 {[%clk 0:00:16.6]}
44... d4 {[%clk 0:00:24.4]} 45. Ka5 {[%clk 0:00:16.5]} 45... d3 {[%clk
0:00:24.4]} 46. Rd1 {[%clk 0:00:14.7]} 46... Rd4 {[%clk 0:00:25.4]} 47. Rd2
{[%clk 0:00:16]} 47... Ke6 {[%clk 0:00:25.9]} 48. h3 {[%clk 0:00:17.4]} 48...
Kd5 {[%clk 0:00:26.8]} 49. Rd1 {[%clk 0:00:18.4]} 49... Ke4 {[%clk 0:00:27.3]}
50. Kb6 {[%clk 0:00:18.4]} 50... Rxb4+ {[%clk 0:00:27.7]} 51. Kc7 {[%clk
0:00:19.9]} 51... Rb5 {[%clk 0:00:27.7]} 52. h4 {[%clk 0:00:21.8]} 52... Ke3
{[%clk 0:00:28.5]} 0-1

[Event "*** Titled Tuesday 3|2 Blitz (Late)"]
[Site "Chess.com"]
[Date "2017.01.03"]
[Round "3"]
[White "SwiftyMcBishop"]
[Black "Ilja_Semjonovs"]
[Result "0-1"]
[WhiteElo "2111"]
[BlackElo "2207"]
[TimeControl "180+2"]
[EndTime "17:34:28 PST"]
[Termination "Ilja_Semjonovs won by resignation"]

1. e4 {[%clk 0:03:02]} 1... c5 {[%clk 0:03:00]} 2. Nf3 {[%clk 0:03:02.8]} 2...
d6 {[%clk 0:03:01]} 3. c3 {[%clk 0:03:02.4]} 3... Nf6 {[%clk 0:03:00.9]} 4. h3
{[%clk 0:03:03.1]} 4... e5 {[%clk 0:02:59.6]} 5. Bd3 {[%clk 0:03:03.5]} 5... b6
{[%clk 0:02:58]} 6. Bc2 {[%clk 0:03:05]} 6... Bb7 {[%clk 0:02:59]} 7. Qe2 {[%clk
0:03:06.5]} 7... Be7 {[%clk 0:02:59.8]} 8. O-O {[%clk 0:03:07.7]} 8... O-O
{[%clk 0:03:00]} 9. d4 {[%clk 0:03:08.2]} 9... cxd4 {[%clk 0:02:51.8]} 10. cxd4
{[%clk 0:03:10.1]} 10... Nbd7 {[%clk 0:02:52.6]} 11. Nc3 {[%clk 0:03:04.7]}
11... a6 {[%clk 0:02:50.7]} 12. Rd1 {[%clk 0:03:05.1]} 12... Qe8 {[%clk
0:02:31.6]} 13. Bg5 {[%clk 0:03:05.1]} 13... h6 {[%clk 0:02:31.5]} 14. Bh4
{[%clk 0:03:06.1]} 14... b5 {[%clk 0:02:29.6]} 15. Bg3 {[%clk 0:03:05.8]} 15...
Nh5 {[%clk 0:02:24]} 16. Bh2 {[%clk 0:03:04.8]} 16... f6 {[%clk 0:01:31.2]} 17.
dxe5 {[%clk 0:03:00.2]} 17... fxe5 {[%clk 0:01:27.6]} 18. Nxe5 {[%clk
0:02:59.9]} 18... Nxe5 {[%clk 0:01:25.3]} 19. Bxe5 {[%clk 0:02:53.5]} 19... dxe5
{[%clk 0:01:25.9]} 20. Bb3+ {[%clk 0:02:51.6]} 20... Kh8 {[%clk 0:01:24.8]} 21.
Kh2 {[%clk 0:01:43.9]} 21... Bc5 {[%clk 0:01:17.7]} 22. f3 {[%clk 0:01:41.5]}
22... Qg6 {[%clk 0:01:12.8]} 23. Qe1 {[%clk 0:01:36.2]} 23... Nf4 {[%clk
0:00:58.5]} 24. Qf1 {[%clk 0:01:26.4]} 24... Rad8 {[%clk 0:00:44.9]} 25. Rac1
{[%clk 0:01:22.7]} 25... Rxd1 {[%clk 0:00:35.8]} 26. Rxd1 {[%clk 0:01:23]} 26...
Bd4 {[%clk 0:00:36.4]} 27. Ne2 {[%clk 0:01:12.5]} 27... Nxe2 {[%clk 0:00:35.9]}
28. Qxe2 {[%clk 0:01:12.1]} 28... Qf6 {[%clk 0:00:32.4]} 29. Rf1 {[%clk
0:01:05.9]} 29... Rc8 {[%clk 0:00:30.4]} 30. Rd1 {[%clk 0:00:56]} 30... Rf8
{[%clk 0:00:25.4]} 31. a4 {[%clk 0:00:48]} 31... Bc6 {[%clk 0:00:23.8]} 32. axb5
{[%clk 0:00:45.4]} 32... Bxb5 {[%clk 0:00:24.4]} 33. Qc2 {[%clk 0:00:39.5]}
33... Qf4+ {[%clk 0:00:23]} 34. Kh1 {[%clk 0:00:38.1]} 34... Qg3 {[%clk
0:00:21.7]} 35. Ba4 {[%clk 0:00:36.6]} 35... Be3 {[%clk 0:00:20]} 36. Bxb5
{[%clk 0:00:33]} 36... axb5 {[%clk 0:00:20.9]} 37. Qe2 {[%clk 0:00:30.6]} 37...
Bf4 {[%clk 0:00:21]} 38. Kg1 {[%clk 0:00:31.7]} 38... Qh2+ {[%clk 0:00:21.6]}
39. Kf1 {[%clk 0:00:25.4]} 39... Bg3 {[%clk 0:00:21.6]} 40. Qe3 {[%clk
0:00:21.9]} 40... Qh1+ {[%clk 0:00:20.1]} 41. Qg1 {[%clk 0:00:23.2]} 41... Rxf3+
{[%clk 0:00:20.2]} 42. Ke2 {[%clk 0:00:17.5]} 42... Qxg1 {[%clk 0:00:20.9]} 43.
Rxg1 {[%clk 0:00:19.4]} 43... Rf2+ {[%clk 0:00:22]} 44. Ke3 {[%clk 0:00:18.9]}
44... Rxb2 {[%clk 0:00:23.2]} 45. Rf1 {[%clk 0:00:20.3]} 45... Rxg2 {[%clk
0:00:23.1]} 46. Kf3 {[%clk 0:00:19.9]} 46... Rf2+ {[%clk 0:00:23.9]} 47. Rxf2
{[%clk 0:00:20.7]} 47... Bxf2 {[%clk 0:00:25.1]} 48. Kxf2 {[%clk 0:00:22.6]}
48... g5 {[%clk 0:00:25.8]} 49. Ke2 {[%clk 0:00:24.5]} 49... h5 {[%clk
0:00:26.7]} 50. Kd3 {[%clk 0:00:26.4]} 50... g4 {[%clk 0:00:27.3]} 51. hxg4
{[%clk 0:00:27.2]} 51... hxg4 {[%clk 0:00:28.5]} 52. Kc3 {[%clk 0:00:29.1]}
52... g3 {[%clk 0:00:29.4]} 53. Kb4 {[%clk 0:00:31]} 53... g2 {[%clk 0:00:30.7]}
54. Kxb5 {[%clk 0:00:32.9]} 54... g1=Q {[%clk 0:00:31.3]} 55. Kc6 {[%clk
0:00:34.8]} 55... Qd4 {[%clk 0:00:32.1]} 56. Kb5 {[%clk 0:00:35.3]} 56... Qxe4
{[%clk 0:00:32.3]} 0-1